bitfinex/quotes_ETHUSD_20251126
["timestamp","ask_amount","ask_price","bid_price","bid_amount"]
[1764160606042,0.72559411,2906.6,2905.0,0.1354]
[1764160606043,0.405504,2906.5,2905.0,0.1354]
[1764160606242,0.405504,2906.3,2905.0,0.1354]
[1764160606443,0.31857052,2906.2,2905.0,0.1354]
[1764160606633,0.4581,2906.2,2905.0,0.1354]
[1764160607034,0.4581,2906.2,2905.0,0.05354485]
[1764160607337,0.4581,2906.2,2905.0,0.32969485]
[1764160609364,0.4581,2906.2,2905.0,0.22994485]
[1764160609664,0.4581,2906.2,2905.0,0.32969485]
[1764160610271,0.4581,2906.2,2905.1,0.1764]
[1764160611229,0.4581,2906.2,2905.0,0.05354485]
[1764160612873,0.4581,2906.2,2905.1,0.09975]
[1764160613239,1.13109811,2906.9,2905.1,0.09975]
[1764160613440,0.4581,2906.6,2905.3,0.09975]
[1764160613789,0.31884922,2906.5,2905.3,0.09975]
[1764160613987,0.4581,2906.6,2905.3,0.27615]
[1764160614138,0.77696284,2906.5,2905.3,0.27615]
[1764160614340,0.4581,2906.5,2905.0,0.05354485]
[1764160614539,0.4581,2906.4,2905.1,0.09975]
[1764160615380,0.4581,2906.4,2905.1,0.27615]
[1764160616073,0.4581,2906.4,2905.2,0.1764]
[1764160618773,0.4581,2906.4,2905.2,0.27615]
[1764160618981,0.4581,2906.4,2905.4,0.09975]
[1764160619482,0.4581,2906.4,2905.2,0.27615]
[1764160619661,0.4581,2906.4,2905.3,0.27615]
[1764160620056,0.4601,2906.4,2905.3,0.09975]
[1764160620257,0.002,2906.4,2905.6,0.09975]
[1764160620490,0.002,2906.4,2905.9,0.09975]
[1764160620857,0.002,2906.4,2905.9,0.27615]
[1764160621051,0.4676,2906.0,2905.4,0.09975]
[1764160621485,0.4601,2906.4,2905.9,0.1764]
[1764160621785,0.4601,2906.4,2905.4,0.09975]
[1764160621949,0.4601,2906.4,2905.4,0.27615]
[1764160622152,0.4601,2906.4,2905.7,0.09975]
[1764160622834,0.4676,2905.8,2905.1,0.1764]
[1764160622951,0.4676,2905.8,2905.2,0.09975]
[1764160623149,0.002,2906.4,2905.7,0.1764]
[1764160623481,0.4601,2906.4,2905.7,0.1764]
[1764160626501,0.4925,2905.8,2905.3,0.09975]
[1764160626703,0.6727,2905.8,2905.0,0.15429485]
[1764160627002,0.4781,2905.7,2905.0,0.05454485]
[1764160627171,0.4781,2905.7,2905.0,0.001]
[1764160628895,0.4773,2905.7,2905.0,0.001]
[1764160630227,0.4773,2905.7,2905.0,0.10075]
[1764160630521,0.1802,2906.0,2905.0,0.27795]
[1764160630820,0.1802,2906.0,2905.6,0.1772]
[1764160631289,0.6583,2906.0,2905.6,0.1772]
[1764160631690,0.1802,2906.0,2905.6,0.1772]
[1764160632086,0.4781,2906.2,2905.6,0.1772]
[1764160633087,0.002,2906.4,2905.6,0.1772]
[1764160633392,0.002,2906.4,2905.6,0.3544]
[1764160634098,0.002,2906.4,2905.7,0.09975]
[1764160634610,0.4519,2906.3,2905.4,0.09975]
[1764160634812,0.002,2906.4,2905.3,8.32582625]
[1764160635027,0.002,2906.4,2905.7,0.09975]
[1764160635416,0.002,2906.4,2905.7,0.27695]
[1764160635594,0.002,2906.4,2905.2,0.405504]
[1764160635794,0.4539,2906.4,2905.6,0.09975]
[1764160636001,0.4539,2906.4,2905.3,0.27695]
[1764160636193,0.4539,2906.4,2905.5,0.09975]
[1764160636400,0.4539,2906.4,2905.2,0.09975]
[1764160636729,0.4539,2906.4,2905.3,0.1772]
[1764160636893,0.4539,2906.4,2905.4,0.09975]
[1764160637306,0.4539,2906.4,2905.4,0.27695]
[1764160637723,0.4539,2906.4,2905.5,0.1772]
[1764160637894,0.4539,2906.4,2905.7,0.09975]
[1764160638798,0.4539,2906.4,2905.5,0.09975]
[1764160638996,0.4539,2906.4,2905.0,0.001]
[1764160639205,0.4539,2906.4,2905.2,0.09975]
[1764160639591,0.4539,2906.4,2905.3,0.09975]
[1764160639797,0.4539,2906.4,2905.0,0.001]
[1764160640117,0.32016534,2906.3,2905.0,0.001]
[1764160640312,0.4539,2906.4,2905.0,0.001]
[1764160640516,0.77206285,2906.3,2905.0,0.001]
[1764160640728,0.4519,2906.3,2905.1,0.09975]
[1764160640928,0.4519,2906.2,2905.1,0.09975]
[1764160641600,0.4519,2906.2,2905.0,0.001]
[1764160642120,0.4519,2906.2,2905.0,0.10075]
[1764160642320,0.4519,2906.2,2905.0,0.001]
[1764160643713,0.4519,2906.2,2905.1,0.09975]
[1764160644730,0.4519,2906.2,2905.0,0.001]
[1764160646022,0.6385,2905.1,2905.0,0.001]
[1764160646332,0.405504,2906.1,2905.0,0.001]
[1764160646513,0.4519,2906.0,2905.0,0.1782]
[1764160646935,0.1818,2905.9,2905.0,0.1782]
[1764160647133,0.1818,2905.9,2905.1,0.0535]
[1764160647436,0.4519,2905.8,2905.1,0.0535]
[1764160648142,0.4567,2905.2,2905.0,0.001]
[1764160648639,0.4567,2905.1,2905.0,0.001]
[1764160648947,0.4519,2905.5,2905.0,0.001]
[1764160649718,0.4519,2905.8,2905.1,0.0535]
[1764160650053,0.1818,2905.9,2905.4,0.1772]
[1764160650234,0.4519,2906.1,2905.4,0.1772]
[1764160650235,0.4519,2906.1,2905.5,0.09975]
[1764160651959,0.4519,2906.1,2905.1,0.0535]
[1764160652125,0.4519,2906.1,2905.1,0.15325]
[1764160653650,0.4511,2906.1,2905.1,0.15325]
[1764160653959,0.002,2906.4,2905.1,0.15325]
[1764160654342,0.002,2906.4,2905.1,0.0535]
[1764160654657,0.002,2906.4,2905.1,0.15325]
[1764160655529,0.4519,2906.3,2905.1,0.15325]
[1764160656671,0.4519,2906.3,2905.1,0.0535]
[1764160657366,0.4519,2906.3,2905.0,0.001]
[1764160657367,0.407504,2906.2,2905.0,0.001]
[1764160657732,0.4519,2906.1,2905.0,0.001]
[1764160659757,0.4519,2906.1,2905.0,0.10075]
[1764160660075,0.4519,2906.1,2905.0,0.27875]
[1764160660438,0.4519,2906.1,2905.0,0.001]
[1764160663351,0.4519,2906.1,2905.0,0.10075]
[1764160663774,0.4519,2906.1,2905.0,0.001]
[1764160668457,0.6528,2905.1,2905.0,0.001]
[1764160668886,1.1058,2905.1,2905.0,0.001]
[1764160673900,0.4537,2905.1,2905.0,0.001]
[1764160674204,0.9067,2905.1,2905.0,0.001]
[1764160674986,0.4537,2905.1,2905.0,0.001]
[1764160675689,0.9067,2905.1,2905.0,0.001]
[1764160676410,0.4537,2905.1,2905.0,0.001]
[1764160677006,0.453,2905.3,2905.0,0.001]
[1764160677308,0.4537,2905.1,2905.0,0.001]
[1764160677673,0.9067,2905.1,2905.0,0.001]
[1764160678288,0.9059,2905.1,2905.0,0.001]
[1764160681025,1.311404,2905.1,2905.0,0.001]
[1764160681205,1.63054662,2905.1,2905.0,0.001]
[1764160681525,1.311404,2905.1,2905.0,0.001]
[1764160686830,0.4689,2905.1,2905.0,0.001]
[1764160687029,0.919,2905.1,2905.0,0.001]
[1764160690331,1.324504,2905.1,2905.0,0.001]
[1764160693533,1.64345958,2905.1,2905.0,0.001]
[1764160694103,1.64545958,2905.1,2905.0,0.001]
[1764160694846,5.27645958,2905.1,2905.0,0.001]
[1764160696147,6.00205369,2905.1,2905.0,0.001]
[1764160697050,2.37105369,2905.1,2905.0,0.001]
[1764160699655,2.37143235,2905.1,2905.0,0.001]
[1764160702255,1.21863824,2905.1,2905.0,0.001]
[1764160702459,1.70663824,2905.1,2905.0,0.001]
[1764160703052,1.70583824,2905.1,2905.0,0.001]
[1764160703658,1.21783824,2905.1,2905.0,0.001]
[1764160703823,0.898504,2905.1,2905.0,0.001]
[1764160704457,1.386504,2905.1,2905.0,0.001]
[1764160704834,8.11606229,2905.1,2905.0,0.001]
[1764160705152,8.8416564,2905.1,2905.0,0.001]
[1764160705353,2.43158012,2905.1,2905.0,0.001]
[1764160705962,6.79876644,2905.1,2905.0,0.001]
[1764160706361,22.36499544,2905.1,2905.0,0.001]
[1764160706570,22.46473253,2905.1,2905.0,0.001]
[1764160706861,4.76209811,2904.8,2904.7,0.001]
[1764160707042,12.85504272,2904.8,2904.7,0.001]
[1764160707243,13.34304272,2904.8,2904.7,0.001]
[1764160707646,13.44277981,2904.8,2904.7,0.001]
[1764160708159,0.72559411,2904.7,2904.5,0.001]
[1764160708357,13.92557544,2904.6,2904.5,0.001]
[1764160708662,22.72443146,2904.6,2904.5,0.001]
[1764160709065,15.10842246,2904.6,2904.5,0.001]
[1764160709357,6.79756644,2904.6,2904.5,0.001]
[1764160710245,2.43038012,2904.6,2904.5,0.001]
[1764160712266,13.47666862,2904.6,2904.5,0.001]
[1764160712433,13.57640571,2904.6,2904.5,0.001]
[1764160712630,12.77196371,2904.6,2904.5,0.001]
[1764160712826,12.67222662,2904.6,2904.5,0.001]
[1764160714169,23.02220762,2904.6,2904.5,0.001]
[1764160714378,23.12194471,2904.6,2904.5,0.001]
[1764160714672,16.53989171,2904.6,2904.5,0.001]
[1764160714981,9.06160562,2904.6,2904.5,0.001]
[1764160716849,9.19964399,2904.6,2904.5,0.001]
[1764160717238,6.93395499,2904.6,2904.5,0.001]
[1764160717867,0.94932038,2904.6,2904.5,0.001]
[1764160718640,1.84282438,2904.6,2904.5,0.001]
[1764160719374,1.21678601,2904.6,2904.5,0.001]
[1764160719736,1.70478601,2904.6,2904.5,0.001]
[1764160720276,1.70405701,2904.6,2904.5,0.001]
[1764160722046,2.42965112,2904.6,2904.5,0.001]
[1764160722570,23.0212973,2904.6,2904.5,0.001]
[1764160724570,31.36252723,2904.6,2904.5,0.001]
[1764160725042,18.24900023,2904.6,2904.5,0.001]
[1764160725443,22.93494623,2904.6,2904.5,0.001]
[1764160725785,21.50820223,2904.6,2904.5,0.001]
[1764160726143,11.09973223,2904.6,2904.5,0.001]
[1764160726349,1.54490819,2904.6,2904.5,0.001]
[1764160726647,1.21605701,2904.6,2904.5,0.001]
[1764160726848,1.68385701,2904.6,2904.5,0.001]
[1764160727761,1.68305701,2904.6,2904.5,0.001]
[1764160728368,1.21525701,2904.6,2904.5,0.001]
[1764160728575,7.62909875,2904.6,2904.5,0.001]
[1764160728878,8.23491378,2904.6,2904.5,0.001]
[1764160729568,7.76711378,2904.6,2904.5,0.001]
[1764160730073,8.23491378,2904.6,2904.5,0.001]
[1764160733356,7.76711378,2904.6,2904.5,0.001]
[1764160734298,8.50316853,2904.6,2904.5,0.001]
[1764160734601,8.59974761,2904.6,2904.5,0.1806]
[1764160734757,7.86369286,2904.6,2904.5,0.1806]
[1764160734957,8.78369286,2904.6,2904.5,0.001]
[1764160735151,8.31589286,2904.6,2904.5,0.001]
[1764160735385,9.05225463,2904.6,2904.5,0.001]
[1764160735588,9.19026632,2904.6,2904.5,0.001]
[1764160736390,9.65806632,2904.6,2904.5,0.001]
[1764160736587,11.58476182,2904.6,2904.5,0.001]
[1764160738783,15.21576182,2904.6,2904.5,0.001]
[1764160739785,18.86381082,2904.6,2904.5,0.001]
[1764160740099,31.44205282,2904.6,2904.5,0.001]
[1764160740480,29.87441814,2904.6,2904.5,0.001]
[1764160740684,28.9542868,2904.6,2904.5,0.001]
[1764160741060,21.90838911,2904.5,2904.2,0.001]
[1764160741366,16.3100312,2904.3,2904.2,0.001]
[1764160741565,14.13147496,2904.3,2904.2,0.001]
[1764160741764,14.59927496,2904.3,2904.2,0.001]
[1764160741989,14.73732476,2904.3,2904.2,0.001]
[1764160742203,22.16524535,2904.1,2903.9,0.001]
[1764160742499,23.67347211,2904.1,2903.9,0.001]
[1764160742659,22.55723748,2904.1,2903.9,0.001]
[1764160743076,32.22466248,2904.1,2903.9,0.001]
[1764160744187,31.30495311,2904.1,2903.9,0.001]
[1764160745287,31.54275048,2904.1,2903.9,0.001]
[1764160745492,32.46245985,2904.1,2903.9,0.001]
[1764160745692,37.86275048,2904.1,2903.9,0.001]
[1764160746283,32.4613624,2904.1,2903.9,0.001]
[1764160747163,16.2350714,2904.1,2903.9,0.001]
[1764160747367,32.4613624,2904.1,2903.9,0.001]
[1764160747595,0.405504,2903.9,2902.9,0.001]
[1764160747769,22.09219035,2903.6,2902.9,0.001]
[1764160748093,23.14821711,2903.6,2902.9,0.001]
[1764160748288,9.92937397,2903.6,2903.5,0.1806]
[1764160748498,1.58883673,2903.6,2903.5,0.1806]
[1764160748666,0.86324262,2903.6,2903.5,0.1806]
[1764160749093,0.86324262,2903.6,2903.5,0.3602]
[1764160749390,0.86324262,2903.6,2903.5,0.1806]
[1764160751663,0.13807363,2903.6,2903.5,0.3602]
[1764160751863,0.31875323,2904.3,2903.5,0.3602]
[1764160752166,0.405504,2903.8,2903.5,0.1806]
[1764160752368,8.34053724,2903.9,2903.5,0.1806]
[1764160752369,0.404704,2904.1,2903.5,0.3602]
[1764160752589,0.31875476,2904.0,2903.7,0.1796]
[1764160752785,0.31875476,2903.9,2903.5,0.001]
[1764160753495,0.31875476,2903.9,2903.8,0.1796]
[1764160753700,0.3602,2904.0,2903.8,0.1796]
[1764160753994,0.3602,2904.0,2903.9,0.3592]
[1764160754408,0.765704,2904.0,2903.9,0.1796]
[1764160754782,0.765704,2904.0,2903.9,0.3592]
[1764160754994,0.405504,2904.0,2903.9,0.3592]
[1764160755404,0.002,2904.6,2903.9,0.3592]
[1764160755707,0.405504,2904.4,2903.7,0.1796]
[1764160755912,0.405504,2904.2,2903.7,0.1796]
[1764160756086,0.405504,2904.5,2903.7,0.1796]
[1764160756288,0.31879931,2904.4,2904.2,0.1796]
[1764160756510,0.405504,2904.2,2904.1,0.0516]
[1764160756677,0.72430469,2904.2,2904.1,0.0516]
[1764160756878,0.72430469,2904.2,2904.1,0.2312]
[1764160757883,0.405504,2904.4,2904.1,0.4108]
[1764160758084,0.405504,2904.2,2904.1,0.2312]
[1764160758285,0.405504,2904.5,2904.1,0.2312]
[1764160758494,6.41432572,2904.3,2904.1,0.2312]
[1764160758816,0.405504,2904.2,2903.9,0.0516]
[1764160759118,0.405504,2904.0,2903.9,0.0516]
[1764160759490,0.405504,2904.0,2903.9,0.4108]
[1764160760116,0.405504,2904.2,2903.9,0.4108]
[1764160760293,0.405504,2904.2,2904.0,0.1796]
[1764160760488,6.81982972,2904.2,2904.1,0.1796]
[1764160761621,6.81982972,2904.2,2904.1,0.3592]
[1764160762020,0.405504,2904.5,2904.1,0.3592]
[1764160762321,0.405504,2904.5,2904.4,0.1796]
[1764160762626,6.7331665,2904.5,2904.4,0.1796]
[1764160764626,0.31884078,2904.5,2904.4,0.1796]
[1764160764840,0.405504,2904.5,2904.4,0.1796]
[1764160765140,6.81982972,2904.5,2904.4,0.1796]
[1764160766106,0.405504,2904.5,2904.4,0.3592]
[1764160767320,0.002,2904.6,2904.4,0.3592]
[1764160767498,0.002,2904.6,2903.9,0.0516]
[1764160767499,0.002,2904.6,2904.5,0.3592]
[1764160770007,0.407504,2904.6,2904.0,0.1806]
[1764160770208,6.41432572,2904.4,2904.0,0.001]
[1764160770457,6.41432572,2904.4,2904.3,0.1796]
[1764160770601,6.41432572,2904.4,2904.0,0.001]
[1764160770931,6.41432572,2904.2,2904.0,0.001]
[1764160771320,6.41432572,2904.2,2904.1,0.1796]
[1764160771524,6.81982972,2904.2,2904.1,0.1796]
[1764160771734,6.90232572,2904.2,2904.0,0.001]
[1764160772517,6.41432572,2904.2,2904.0,0.001]
[1764160772742,0.405504,2904.2,2904.1,0.1796]
[1764160773079,6.81982972,2904.2,2904.1,0.1796]
[1764160773345,6.81982972,2904.2,2904.0,0.001]
[1764160777025,6.81982972,2904.2,2904.1,0.1796]
[1764160777227,0.404704,2904.2,2904.1,0.1796]
[1764160778723,6.81902972,2904.2,2904.1,0.1796]
[1764160778924,7.30702972,2904.2,2904.0,0.001]
[1764160779433,6.81902972,2904.2,2904.0,0.001]
[1764160782742,0.31963105,2904.1,2904.0,0.001]
[1764160784268,1.18263505,2904.1,2904.0,0.001]
[1764160784842,4.35613505,2904.1,2904.0,0.001]
[1764160785043,0.72513505,2904.1,2904.0,0.1806]
[1764160785782,0.31963105,2904.1,2904.0,0.3602]
[1764160786145,0.31963105,2904.1,2904.0,0.1806]
[1764160786379,7.59696077,2904.1,2904.0,0.001]
[1764160786583,1.18263505,2904.1,2904.0,0.001]
[1764160789082,0.31963105,2904.1,2904.0,0.1806]
[1764160789270,0.002,2904.2,2904.0,0.3602]
[1764160789588,0.002,2904.2,2904.1,0.1796]
[1764160789782,0.32186304,2904.2,2904.1,0.1796]
[1764160790285,0.77936304,2904.2,2904.0,0.001]
[1764160790588,1.18286704,2904.1,2904.0,0.001]
[1764160791290,0.72536704,2904.1,2904.0,0.001]
[1764160792097,1.64586704,2904.1,2904.0,0.001]
[1764160792695,1.18286704,2904.1,2904.0,0.001]
[1764160793002,0.86338826,2904.1,2904.0,0.001]
[1764160793414,1.32088826,2904.1,2904.0,0.001]
[1764160794375,1.78388826,2904.1,2904.0,0.001]
[1764160795808,1.32088826,2904.1,2904.0,0.001]
[1764160800021,0.31986304,2904.1,2904.0,0.3602]
[1764160801824,0.31906304,2904.1,2904.0,0.3602]
[1764160801987,0.31906304,2904.1,2904.0,0.001]
[1764160801988,1.64506704,2904.1,2904.0,0.001]
[1764160802319,1.64506704,2904.1,2904.0,0.1806]
[1764160802320,0.72456704,2904.1,2904.0,0.1806]
[1764160803287,0.31906304,2904.1,2904.0,0.1806]
[1764160805411,0.31906304,2904.1,2904.0,0.001]
[1764160805610,0.31906304,2904.1,2903.5,0.001]
[1764160805611,0.405504,2904.0,2903.5,0.001]
[1764160806088,0.4936,2904.0,2903.5,0.001]
[1764160806820,0.4936,2904.0,2903.7,0.001]
[1764160807228,4.036504,2903.6,2903.5,0.001]
[1764160807521,12.76598739,2903.6,2903.5,0.001]
[1764160807719,12.89831985,2903.6,2903.5,0.001]
[1764160807922,16.03068685,2903.6,2903.5,0.001]
[1764160808109,16.95030178,2903.6,2903.5,0.001]
[1764160809192,16.03068685,2903.6,2903.5,0.001]
[1764160810323,16.16876572,2903.6,2903.5,0.001]
[1764160810537,1.13109811,2903.3,2902.3,0.001]
[1764160810696,16.5461378,2903.3,2902.3,0.001]
[1764160810895,16.64587489,2903.3,2902.3,0.001]
[1764160811113,1.13109811,2903.1,2902.3,0.001]
[1764160811422,0.405504,2902.7,2902.3,0.001]
[1764160811625,7.99296214,2902.6,2902.3,0.001]
[1764160813627,6.95897629,2902.6,2902.3,0.001]
[1764160813925,0.72559411,2903.1,2902.5,0.0482]
[1764160814126,0.86367441,2903.1,2902.7,0.0236]
[1764160814740,0.1380803,2903.1,2902.7,0.0236]
[1764160814907,6.41535814,2903.5,2903.0,0.0236]
[1764160815236,0.13807506,2903.3,2903.0,0.0236]
[1764160815432,0.31792742,2903.6,2903.0,0.0236]
[1764160815733,0.45599104,2903.6,2903.2,0.0236]
[1764160816738,0.62786362,2903.6,2902.5,0.001]
[1764160817036,0.405504,2903.5,2902.6,0.0236]
[1764160817535,0.13806362,2903.6,2903.4,0.0236]
[1764160817740,0.31798615,2903.8,2903.5,0.0236]
[1764160818039,0.13804742,2903.8,2903.5,0.0236]
[1764160818334,0.002,2904.2,2903.7,0.0236]
[1764160818547,0.14002789,2904.2,2904.1,0.0236]
[1764160818702,0.002,2904.2,2904.1,0.0236]
[1764160820105,0.405504,2904.1,2903.6,0.0236]
[1764160820310,0.405504,2904.1,2902.9,0.09975]
[1764160820532,0.002,2904.2,2904.0,0.0236]
[1764160820736,0.002,2904.2,2904.1,0.0236]
[1764160821542,0.002,2904.2,2903.5,0.0236]
[1764160821708,0.002,2904.2,2903.6,0.0236]
[1764160824239,0.002,2904.2,2904.1,0.0236]
[1764160824454,0.002,2904.2,2904.1,0.0472]
[1764160824937,0.002,2904.2,2904.1,0.0236]
[1764160825661,0.002,2904.2,2904.1,0.0472]
[1764160825846,0.002,2904.2,2904.1,0.0236]
[1764160826527,0.0012,2904.2,2904.1,0.0236]
[1764160827446,0.0012,2904.2,2904.1,0.0472]
[1764160829457,0.0012,2904.2,2904.1,0.0236]
[1764160829835,0.0012,2904.2,2904.1,0.0472]
[1764160831166,0.0012,2904.2,2904.1,0.0236]
[1764160831373,0.0012,2904.2,2903.5,0.001]
[1764160831374,0.405504,2904.1,2903.5,0.001]
[1764160831675,1.056704,2903.6,2903.5,0.001]
[1764160832756,1.546504,2903.6,2903.5,0.001]
[1764160833258,1.056704,2903.6,2903.5,0.001]
[1764160833643,1.546504,2903.6,2903.5,0.001]
[1764160834568,1.056704,2903.6,2903.5,0.001]
[1764160834870,1.363304,2903.6,2903.5,0.001]
[1764160837675,0.873504,2903.6,2903.5,0.001]
[1764160838775,1.363304,2903.6,2903.5,0.001]
[1764160839585,0.873504,2903.6,2903.5,0.001]
[1764160840658,1.363304,2903.6,2903.5,0.001]
[1764160841582,0.405504,2903.6,2903.5,0.001]
[1764160841780,1.363304,2903.6,2903.5,0.001]
[1764160842573,0.405504,2903.6,2903.5,0.001]
[1764160842778,0.405504,2903.6,2903.5,0.0246]
[1764160843074,0.1832,2903.9,2903.5,0.0246]
[1764160843275,0.0012,2904.2,2903.5,0.0482]
[1764160843478,0.406704,2904.2,2903.8,0.0236]
[1764160843648,0.31830267,2904.1,2903.8,0.0236]
[1764160843847,0.491,2904.2,2903.8,0.0236]
[1764160844185,0.0012,2904.2,2904.1,0.0236]
[1764160844860,0.0012,2904.2,2904.1,0.0472]
[1764160845260,0.002,2904.5,2904.1,0.0472]
[1764160845468,0.002,2904.5,2904.4,0.0236]
[1764160845878,0.002,2904.5,2904.4,0.0472]
[1764160849456,0.002,2904.5,2904.4,0.14695]
[1764160851356,0.0012,2904.5,2904.4,0.14695]
[1764160854090,0.002,2904.7,2904.6,0.09975]
[1764160854278,0.002,2904.7,2904.6,0.0236]
[1764160854486,0.002,2904.7,2904.6,0.0472]
[1764160858384,0.002,2904.7,2904.6,0.14695]
[1764160858572,0.002,2904.7,2904.6,0.0236]
[1764160858900,0.002,2904.7,2904.6,0.0472]
[1764160859097,0.002,2904.7,2904.6,0.0236]
[1764160860519,0.4952,2904.7,2904.4,0.001]
[1764160860732,0.002,2904.7,2904.4,0.001]
[1764160860893,0.002,2904.7,2904.6,0.0236]
[1764160862106,0.002,2904.7,2904.6,0.0472]
[1764160862601,0.002,2904.7,2904.6,0.0236]
[1764160863000,0.9838,2904.7,2904.4,0.001]
[1764160863227,0.4952,2904.7,2904.4,0.001]
[1764160863505,0.002,2904.7,2904.4,0.001]
[1764160863708,0.002,2904.7,2904.6,0.0236]
[1764160864208,0.002,2904.7,2904.4,0.001]
[1764160864729,0.002,2904.7,2904.6,0.0236]
[1764160865554,0.002,2904.7,2904.6,0.0472]
[1764160866132,0.002,2904.9,2904.8,0.09975]
[1764160866342,0.002,2905.1,2904.9,0.09975]
[1764160866548,0.002,2905.1,2905.0,0.09975]
[1764160866699,0.002,2905.1,2905.0,0.14695]
[1764160866901,0.002,2905.1,2905.0,5.25945411]
[1764160867116,0.002,2905.2,2905.1,0.405504]
[1764160867317,0.002,2905.2,2905.1,0.552454]
[1764160867656,1.28635763,2908.0,2904.9,8.33145494]
[1764160867657,0.4888,2907.5,2906.0,0.09975]
[1764160867814,0.1921,2908.0,2906.0,0.77279411]
[1764160868016,0.1872,2906.9,2906.0,0.77279411]
[1764160868324,0.1872,2906.9,2906.0,0.87254411]
[1764160869046,0.4888,2907.1,2906.0,0.87254411]
[1764160869265,0.4888,2907.4,2906.0,0.87254411]
[1764160869620,0.676,2906.9,2906.0,0.77279411]
[1764160869920,0.676,2906.9,2906.0,0.74919411]
[1764160870130,0.676,2906.9,2906.0,0.77279411]
[1764160870561,0.1921,2908.0,2906.0,0.87254411]
[1764160870562,0.4888,2907.7,2906.0,0.87254411]
[1764160870717,0.4888,2907.4,2906.0,9.20399905]
[1764160871262,0.4888,2907.4,2906.5,0.09975]
[1764160871439,0.1921,2908.0,2906.1,0.72559411]
[1764160871440,0.1921,2908.0,2906.1,0.74919411]
[1764160871611,0.1921,2908.0,2906.8,0.09975]
[1764160871816,0.4888,2907.9,2906.8,0.09975]
[1764160872961,0.4888,2907.9,2906.5,0.09975]
[1764160873123,0.405504,2907.8,2906.0,0.0236]
[1764160873445,0.405504,2907.8,2906.0,0.12335]
[1764160873650,0.405504,2907.6,2906.0,0.12335]
[1764160873813,0.4888,2907.5,2906.2,0.09975]
[1764160874018,0.4888,2907.5,2905.9,0.09975]
[1764160874217,0.1921,2908.0,2906.0,0.09975]
[1764160874420,0.1921,2908.0,2906.9,0.09975]
[1764160874633,0.4954,2907.9,2906.9,0.09975]
[1764160874878,0.4954,2907.9,2906.9,0.0236]
[1764160875038,0.4954,2907.9,2907.1,0.09975]
[1764160876078,0.4946,2907.9,2907.1,0.09975]
[1764160876447,0.4946,2907.9,2906.7,0.09975]
[1764160876665,0.4946,2907.9,2906.9,0.09975]
[1764160876960,0.4946,2907.9,2906.6,0.09975]
[1764160877944,0.4946,2907.9,2906.6,0.12415]
[1764160879085,0.405504,2907.8,2906.2,0.09975]
[1764160879453,0.405504,2907.6,2906.2,0.12415]
[1764160879857,0.4954,2907.5,2906.2,0.12415]
[1764160880052,0.4954,2907.5,2906.2,0.09975]
[1764160880254,0.4954,2907.5,2906.5,0.09975]
[1764160881168,0.4954,2907.5,2906.3,0.0244]
[1764160881489,0.4954,2907.5,2906.4,0.09975]
[1764160882046,0.4954,2907.5,2906.4,0.12415]
[1764160883983,0.4954,2907.5,2906.4,0.09975]
[1764160884179,0.4954,2907.5,2906.7,0.09975]
[1764160885478,0.4954,2907.5,2906.0,0.72559411]
[1764160885680,0.4954,2907.5,2906.1,0.429904]
[1764160886156,0.4954,2907.5,2906.6,0.09975]
[1764160886857,0.4954,2907.5,2906.7,0.09975]
[1764160887454,0.4954,2907.5,2906.6,0.09975]
[1764160887865,0.405504,2907.9,2906.1,0.405504]
[1764160888057,0.405504,2907.9,2906.2,0.12415]
[1764160888391,0.900904,2907.9,2906.5,0.09975]
[1764160888884,0.4954,2907.8,2906.5,0.09975]
[1764160891261,0.4954,2907.8,2906.6,0.0244]
[1764160891450,0.4954,2907.8,2906.8,0.09975]
[1764160891650,0.6895,2908.0,2907.1,0.09975]
[1764160892205,0.6895,2908.0,2907.4,0.09975]
[1764160892507,0.1941,2908.0,2907.4,0.09975]
[1764160892850,0.002,2908.0,2907.3,0.09975]
[1764160893078,0.1802,2907.9,2907.3,0.09975]
[1764160893301,0.1802,2907.9,2907.2,0.0244]
[1764160893450,0.1802,2907.9,2907.4,0.09975]
[1764160895782,0.1822,2907.9,2907.4,0.09975]
[1764160896286,0.002,2907.9,2907.4,0.09975]
[1764160896883,0.4974,2907.9,2907.4,0.09975]
[1764160897181,0.4974,2907.9,2906.9,0.0244]
[1764160897400,0.4648,2907.5,2906.9,0.09975]
[1764160897696,0.4974,2907.9,2906.9,0.09975]
[1764160898588,0.4974,2907.9,2907.1,0.09975]
[1764160899105,0.002,2907.9,2907.4,0.09975]
[1764160899798,0.002,2907.9,2907.3,0.09975]
[1764160900772,0.0012,2907.9,2907.3,0.09975]
[1764160901488,0.0012,2907.9,2907.2,0.0244]
[1764160901692,0.0012,2907.9,2907.5,0.09975]
[1764160902291,0.4966,2907.9,2907.5,0.09975]
[1764160902691,0.0012,2907.9,2907.8,0.0244]
[1764160903189,0.466,2907.9,2907.2,0.84974411]
[1764160903486,0.0012,2907.9,2907.8,0.0244]
[1764160903871,0.0012,2907.9,2907.5,0.09975]
[1764160904676,0.0012,2907.9,2907.8,0.0244]
[1764160905002,0.0012,2907.9,2907.5,0.09975]
[1764160905613,0.0012,2907.9,2907.8,0.0244]
[1764160905785,0.0012,2907.9,2907.1,0.0244]
[1764160905786,0.4985,2907.9,2907.1,0.0244]